fUSD/lending_fUSD_20240527
["ID","MTS","AMOUNT","RATE_DAILY","PERIOD"]
[328024438,1716774670311,-500.0,0.00028767,4]
[328024439,1716774670320,-500.0,0.00028767,4]
[328024440,1716774670330,-1562.49,0.00028767,4]
[328024441,1716774670340,-500.0,0.00028767,4]
[328024442,1716774670349,-500.0,0.00028767,4]
[328024443,1716774670359,-500.0,0.00028767,4]
[328024444,1716774670370,-500.0,0.00028767,4]
[328024445,1716774670381,-500.0,0.00028767,4]
[328024446,1716774670390,-500.0,0.00028767,4]
[328024447,1716774670399,-500.0,0.00028767,4]
[328024448,1716774670408,-500.0,0.00028767,4]
[328024449,1716774670418,-1201.55,0.00028767,4]
[328024450,1716774670427,-500.0,0.00028767,4]
[328024451,1716774670436,-500.0,0.00028767,4]
[328024452,1716774670446,-500.0,0.00028767,4]
[328024453,1716774670456,-545.25,0.00028767,4]
[328024454,1716774670466,-500.0,0.00028767,4]
[328024455,1716774670476,-500.0,0.00028767,4]
[328024456,1716774670486,-500.0,0.00028767,4]
[328024457,1716774670496,-500.0,0.00028767,4]
[328024458,1716774670506,-500.0,0.00028767,4]
[328024459,1716774670516,-753.55,0.00028767,4]
[328024460,1716774670524,-500.0,0.00028767,4]
[328024461,1716774670533,-500.0,0.00028767,4]
[328024462,1716774670542,-500.0,0.00028767,4]
[328024463,1716774670552,-500.0,0.00028767,4]
[328024464,1716774670562,-500.0,0.00028767,4]
[328024465,1716774670572,-500.0,0.00028767,4]
[328024466,1716774670582,-1011.37,0.00028767,4]
[328024467,1716774670591,-500.0,0.00028767,4]
[328024468,1716774670602,-666.41,0.00028767,4]
[328024469,1716774670612,-500.0,0.00028767,4]
[328024470,1716774670622,-1614.98,0.00028767,4]
[328024471,1716774670634,-500.0,0.00028767,4]
[328024472,1716774670643,-500.0,0.00028767,4]
[328024473,1716774670653,-801.81,0.00028767,4]
[328024474,1716774670663,-664.62,0.00028767,4]
[328024475,1716774670672,-500.0,0.00028767,4]
[328024476,1716774670682,-500.0,0.00028767,4]
[328024477,1716774670693,-500.0,0.00028767,4]
[328024478,1716774670703,-584.07,0.00028767,4]
[328024479,1716774670713,-500.0,0.00028767,4]
[328024480,1716774670723,-1253.98,0.00028767,4]
[328024481,1716774670733,-500.0,0.00028767,4]
[328024482,1716774670742,-500.0,0.00028767,4]
[328024483,1716774670752,-1261.26,0.00028767,4]
[328024484,1716774670762,-576.77,0.00028767,4]
[328024485,1716774670772,-500.0,0.00028767,4]
[328024486,1716774670782,-500.0,0.00028767,4]
[328024487,1716774670793,-500.0,0.00028767,4]
[328024488,1716774670803,-1690.76,0.00028767,4]
[328024489,1716774670812,-603.3,0.00028767,4]
[328024490,1716774670822,-500.0,0.00028767,4]
[328024491,1716774670831,-500.0,0.00028767,4]
[328024492,1716774670841,-539.64476703,0.00028767,4]
[328024493,1716774670851,-500.0,0.00028767,4]
[328024494,1716774670860,-500.0,0.00028767,4]
[328024495,1716774670870,-12954.13,0.00028767,4]
[328024496,1716774670881,-500.0,0.00028767,4]
[328024497,1716774670889,-500.0,0.00028767,4]
[328024498,1716774670898,-500.0,0.00028767,4]
[328024499,1716774670907,-500.0,0.00028767,4]
[328024500,1716774670917,-500.0,0.00028767,4]
[328024501,1716774670927,-500.0,0.00028767,4]
[328024502,1716774670937,-500.0,0.00028767,4]
[328024503,1716774670946,-500.0,0.00028767,4]
[328024504,1716774670956,-193.53,0.00028919,2]
[328024505,1716774670966,-182679.59042811,0.00029,2]
[328024506,1716774670975,-5713.2245164,0.00029,2]
[328024507,1716774670986,-4612.93986414,0.00029013,2]
[328024508,1716774670995,-10556.37493783,0.00029039,2]
[328024509,1716774671005,-645.61014105,0.00029039,2]
[328024510,1716774671014,-323.02497155,0.00029039,2]
[328024511,1716774671023,-3017.13539042,0.00029039,2]
[328024512,1716774671033,-521.67434611,0.00029041,4]
[328024513,1716774671042,-644.85231481,0.00029041,4]
[328024514,1716774671051,-500.0,0.00029041,4]
[328024515,1716774671060,-500.0,0.00029041,4]
[328024516,1716774671070,-363.65132935,0.00029041,4]
[328024517,1716774671079,-500.0,0.00029041,4]
[328024518,1716774671089,-500.0,0.00029041,4]
[328024519,1716774671099,-500.0,0.00029041,4]
[328024520,1716774671108,-500.0,0.00029041,4]
[328024521,1716774671118,-500.0,0.00029041,4]
[328024522,1716774671127,-500.0,0.00029041,4]
[328024523,1716774671137,-548.99,0.00029041,4]
[328024524,1716774671146,-623.54,0.00029041,4]
[328024525,1716774671155,-501.63,0.00029041,4]
[328024526,1716774671164,-364.39589791,0.00029041,4]
[328024527,1716774671173,-500.0,0.00029041,4]
[328024528,1716774671183,-500.0,0.00029041,4]
[328024529,1716774671197,-191.72163463,0.00029041,4]
[328024530,1716774671206,-507.83187392,0.00029041,4]
[328024531,1716774671288,-500.0,0.00029041,4]
[328024532,1716774671328,-500.0,0.00029041,4]
[328024533,1716774671338,-500.0,0.00029041,4]
[328024534,1716774671348,-500.0,0.00029041,4]
[328024535,1716774671357,-500.0,0.00029041,4]
[328024536,1716774671368,-500.0,0.00029041,4]
[328024537,1716774671378,-500.0,0.00029041,4]
[328024538,1716774671388,-500.0,0.00029041,4]
[328024539,1716774671398,-500.0,0.00029041,4]
[328024540,1716774671408,-500.0,0.00029041,4]
[328024541,1716774671418,-338.6961754,0.00029041,4]
[328024542,1716774671427,-500.0,0.00029041,4]
[328024543,1716774671438,-500.0,0.00029041,4]
[328024544,1716774671447,-403.89338366,0.00029041,4]
[328024545,1716774671457,-500.0,0.00029041,4]
[328024546,1716774671467,-500.0,0.00029041,4]
[328024547,1716774671477,-500.0,0.00029041,4]
[328024548,1716774671486,-500.0,0.00029041,4]
[328024549,1716774671496,-500.0,0.00029041,4]
[328024550,1716774671506,-500.0,0.00029041,4]
[328024551,1716774671515,-500.0,0.00029041,4]
[328024552,1716774671525,-500.0,0.00029041,4]
[328024553,1716774671534,-500.0,0.00029041,4]
[328024554,1716774671543,-500.0,0.00029041,4]
[328024555,1716774671552,-500.0,0.00029041,4]
[328024556,1716774671562,-500.0,0.00029041,4]
[328024557,1716774671572,-500.0,0.00029041,4]
[328024558,1716774671581,-500.0,0.00029041,4]
[328024559,1716774671590,-500.0,0.00029041,4]
[328024560,1716774671600,-197.03702491,0.00029041,4]
[328024561,1716774671610,-500.0,0.00029041,4]
[328024562,1716774671620,-500.0,0.00029041,4]
[328024563,1716774671631,-500.0,0.00029041,4]
[328024564,1716774671642,-716.7,0.00029041,4]
[328024565,1716774671651,-500.0,0.00029041,4]
[328024566,1716774671661,-500.0,0.00029041,4]
[328024567,1716774671671,-500.0,0.00029041,4]
[328024568,1716774671681,-500.0,0.00029041,4]
[328024569,1716774671691,-500.0,0.00029041,4]
[328024570,1716774671701,-500.0,0.00029041,4]
[328024571,1716774671711,-500.0,0.00029041,4]
[328024572,1716774671721,-500.0,0.00029041,4]
[328024573,1716774671731,-500.0,0.00029041,4]
[328024574,1716774671741,-164.37589834,0.00029041,4]
[328024575,1716774671752,-500.0,0.00029041,4]
[328024576,1716774671763,-500.0,0.00029041,4]
[328024577,1716774671774,-646.57310494,0.00029041,4]
[328024578,1716774671784,-500.0,0.00029041,4]
[328024579,1716774671795,-500.0,0.00029041,4]
[328024580,1716774671804,-500.0,0.00029041,4]
[328024581,1716774671814,-500.0,0.00029041,4]
[328024582,1716774671824,-500.0,0.00029041,4]
[328024583,1716774671834,-520.81,0.00029041,4]
[328024584,1716774671844,-511.76313456,0.00029041,4]
[328024585,1716774671854,-500.0,0.00029041,4]
[328024586,1716774671864,-150.0,0.00029041,4]
[328024587,1716774671875,-500.0,0.00029041,4]
[328024588,1716774671886,-500.0,0.00029041,4]
[328024589,1716774671896,-500.0,0.00029041,4]
[328024590,1716774671906,-500.0,0.00029041,4]
[328024591,1716774671916,-500.0,0.00029041,4]
[328024592,1716774671927,-500.0,0.00029041,4]
[328024593,1716774671937,-500.0,0.00029041,4]
[328024594,1716774671947,-500.0,0.00029041,4]
[328024595,1716774671957,-264.3053647,0.00029041,4]
[328024596,1716774671967,-500.0,0.00029041,4]
[328024597,1716774671977,-500.0,0.00029041,4]
[328024598,1716774671987,-500.0,0.00029041,4]
[328024599,1716774671997,-500.0,0.00029041,4]
[328024600,1716774672007,-500.0,0.00029041,4]
[328024601,1716774672017,-500.0,0.00029041,4]
[328024602,1716774672027,-500.0,0.00029041,4]
[328024603,1716774672038,-363.88114839,0.00029041,4]
[328024604,1716774672047,-500.0,0.00029041,4]
[328024605,1716774672057,-500.0,0.00029041,4]
[328024606,1716774672067,-500.0,0.00029041,4]
[328024607,1716774672077,-500.0,0.00029041,4]
[328024608,1716774672086,-500.0,0.00029041,4]
[328024609,1716774672096,-500.0,0.00029041,4]
[328024610,1716774672105,-500.0,0.00029041,4]
[328024611,1716774672115,-500.0,0.00029041,4]
[328024612,1716774672125,-500.0,0.00029041,4]
[328024613,1716774672138,-502.71,0.00029041,4]
[328024614,1716774672148,-500.0,0.00029041,4]
[328024615,1716774672159,-500.0,0.00029041,4]
[328024616,1716774672168,-500.0,0.00029041,4]
[328024617,1716774672180,-809.78,0.00029041,4]
[328024618,1716774672191,-500.0,0.00029041,4]
[328024619,1716774672201,-500.0,0.00029041,4]
[328024620,1716774672211,-500.0,0.00029041,4]
[328024621,1716774672221,-500.0,0.00029041,4]
[328024622,1716774672232,-920.26,0.00029041,4]
[328024623,1716774672242,-500.0,0.00029041,4]
[328024624,1716774672252,-500.0,0.00029041,4]
[328024625,1716774672264,-500.0,0.00029041,4]
[328024626,1716774672274,-522.9,0.00029041,4]
[328024627,1716774672284,-500.0,0.00029041,4]
[328024628,1716774672294,-500.0,0.00029041,4]
[328024629,1716774672304,-559.7,0.00029041,4]
[328024630,1716774672314,-3246.39,0.00029041,4]
[328024631,1716774672325,-500.0,0.00029041,4]
[328024632,1716774672335,-500.0,0.00029041,4]
[328024633,1716774672346,-850.87,0.00029041,4]
[328024634,1716774672358,-500.0,0.00029041,4]
[328024635,1716774672368,-500.0,0.00029041,4]
[328024636,1716774672380,-500.0,0.00029041,4]
[328024637,1716774672390,-1876.14,0.00029041,4]
[328024638,1716774672400,-500.0,0.00029041,4]
[328024639,1716774672410,-500.0,0.00029041,4]
[328024640,1716774672419,-1150.71,0.00029041,4]
[328024641,1716774672430,-500.0,0.00029041,4]
[328024642,1716774672440,-500.0,0.00029041,4]
[328024643,1716774672450,-3298.05,0.00029041,4]
[328024644,1716774672460,-500.0,0.00029041,4]
[328024645,1716774672470,-500.0,0.00029041,4]
[328024646,1716774672480,-665.62,0.00029041,4]
[328024647,1716774672490,-500.0,0.00029041,4]
[328024648,1716774672500,-500.0,0.00029041,4]
[328024649,1716774672510,-500.0,0.00029041,4]
[328024650,1716774672520,-578.22051218,0.00029041,4]
[328024651,1716774672530,-1737.1,0.00029041,4]
[328024652,1716774672540,-500.0,0.00029041,4]
[328024653,1716774672551,-362.87086818,0.00029041,4]
[328024654,1716774672560,-500.0,0.00029041,4]
[328024655,1716774672571,-589.83,0.00029041,4]
[328024656,1716774672581,-500.0,0.00029041,4]
[328024657,1716774672591,-1057.8,0.00029041,4]
[328024658,1716774672602,-500.0,0.00029041,4]
[328024659,1716774672612,-500.0,0.00029041,4]
[328024660,1716774672622,-500.0,0.00029041,4]
[328024661,1716774672634,-500.0,0.00029041,4]
[328024662,1716774672643,-538.99,0.00029041,4]
[328024663,1716774672656,-1379.1,0.00029041,4]
[328024664,1716774672666,-674.64,0.00029041,4]
[328024665,1716774672677,-500.0,0.00029041,4]
[328024666,1716774672687,-500.0,0.00029041,4]
[328024667,1716774672697,-243.42564206,0.00029041,4]
[328024668,1716774672706,-500.0,0.00029041,4]
[328024669,1716774672716,-903.17,0.00029041,4]
[328024670,1716774672727,-500.0,0.00029041,4]
[328024671,1716774672737,-500.0,0.00029041,4]
[328024672,1716774672747,-500.0,0.00029041,4]
[328024673,1716774672757,-500.0,0.00029041,4]
[328024674,1716774672767,-500.0,0.00029041,4]
[328024675,1716774672777,-500.0,0.00029041,4]
[328024676,1716774672787,-584.8140469,0.00029041,4]
[328024677,1716774672797,-500.0,0.00029041,4]
[328024678,1716774672807,-500.0,0.00029041,4]
[328024679,1716774672817,-500.0,0.00029041,4]
[328024680,1716774672827,-500.0,0.00029041,4]
[328024681,1716774672837,-500.0,0.00029041,4]
[328024682,1716774672847,-500.0,0.00029041,4]
[328024683,1716774672857,-500.0,0.00029041,4]
[328024684,1716774672867,-500.0,0.00029041,4]
[328024685,1716774672878,-223.82846381,0.00029041,4]
[328024686,1716774672888,-500.0,0.00029041,4]
[328024687,1716774672897,-500.0,0.00029041,4]
[328024688,1716774672907,-1792.24,0.00029041,4]
[328024689,1716774672916,-500.0,0.00029041,4]
[328024690,1716774672926,-500.0,0.00029041,4]
[328024691,1716774672936,-500.0,0.00029041,4]
[328024692,1716774672946,-360.88454478,0.00029041,4]
[328024693,1716774672955,-500.0,0.00029041,4]
[328024694,1716774672964,-500.0,0.00029041,4]
[328024695,1716774672975,-500.0,0.00029041,4]
[328024696,1716774672984,-500.0,0.00029041,4]
[328024697,1716774672993,-555.55,0.00029041,4]
[328024698,1716774673003,-279.61956937,0.00029041,4]
[328024699,1716774673012,-500.0,0.00029041,4]
[328024700,1716774673022,-500.0,0.00029041,4]
[328024701,1716774673032,-500.0,0.00029041,4]
[328024702,1716774673042,-500.0,0.00029041,4]
[328024703,1716774673052,-500.0,0.00029041,4]
[328024704,1716774673061,-500.0,0.00029041,4]
[328024705,1716774673071,-554.9,0.00029041,4]
[328024706,1716774673081,-447.7029529,0.00029041,4]
[328024707,1716774673090,-500.0,0.00029041,4]
[328024708,1716774673100,-500.0,0.00029041,4]
[328024709,1716774673109,-593.69,0.00029041,4]
[328024710,1716774673119,-1375.79,0.00029041,4]
[328024711,1716774673130,-797.4,0.00029041,4]
[328024712,1716774673140,-500.0,0.00029041,4]
[328024713,1716774673149,-500.0,0.00029041,4]
[328024714,1716774673158,-272.58824328,0.00029041,2]
[328024715,1716774673168,-500.0,0.00029041,4]
[328024716,1716774673179,-811.5,0.00029041,4]
[328024717,1716774673192,-500.0,0.00029041,4]
[328024718,1716774673201,-500.0,0.00029041,4]
[328024719,1716774673210,-500.0,0.00029041,4]
[328024720,1716774673219,-511.06568669,0.00029041,4]
[328024721,1716774673229,-500.0,0.00029041,4]
[328024722,1716774673238,-500.0,0.00029041,4]
[328024723,1716774673247,-752.63,0.00029041,4]
[328024724,1716774673257,-500.0,0.00029041,4]
[328024725,1716774673272,-500.0,0.00029041,4]
[328024726,1716774673281,-500.0,0.00029041,4]
[328024727,1716774673291,-508.3,0.00029041,4]
[328024728,1716774673300,-500.0,0.00029041,4]
[328024729,1716774673310,-500.0,0.00029041,4]
[328024730,1716774673319,-500.0,0.00029041,4]
[328024731,1716774673329,-500.0,0.00029041,4]
[328024732,1716774673339,-612.14,0.00029041,4]
[328024733,1716774673348,-500.0,0.00029041,4]
[328024734,1716774673358,-500.0,0.00029041,4]
[328024735,1716774673369,-500.0,0.00029041,4]
[328024736,1716774673381,-500.0,0.00029041,4]
[328024737,1716774673392,-1562.49,0.00029041,4]
[328024738,1716774673402,-500.0,0.00029041,4]
[328024739,1716774673412,-500.0,0.00029041,4]
[328024740,1716774673422,-500.0,0.00029041,4]
[328024741,1716774673431,-558.2411879,0.00029041,4]
[328024742,1716774673441,-500.0,0.00029041,4]
[328024743,1716774673451,-500.0,0.00029041,4]
[328024744,1716774673461,-500.0,0.00029041,4]
[328024745,1716774673472,-500.0,0.00029041,4]
[328024746,1716774673482,-1201.55,0.00029041,4]
[328024747,1716774673492,-500.0,0.00029041,4]
[328024748,1716774673502,-500.0,0.00029041,4]
[328024749,1716774673512,-562.48114465,0.00029041,4]
[328024750,1716774673822,-545.25,0.00029041,4]
[328024751,1716774673832,-500.0,0.00029041,4]
[328024752,1716774673842,-500.0,0.00029041,4]
[328024753,1716774673851,-500.0,0.00029041,4]
[328024754,1716774673861,-500.0,0.00029041,4]
[328024755,1716774673870,-500.0,0.00029041,4]
[328024756,1716774673881,-753.55,0.00029041,4]
[328024757,1716774673890,-500.0,0.00029041,4]
[328024758,1716774673899,-500.0,0.00029041,4]
[328024759,1716774673908,-500.0,0.00029041,4]
[328024760,1716774673918,-500.0,0.00029041,4]
[328024761,1716774673927,-500.0,0.00029041,4]
[328024762,1716774673937,-500.0,0.00029041,4]
[328024763,1716774673947,-1011.37,0.00029041,4]
[328024764,1716774673956,-214.03789808,0.00029041,4]
[328024765,1716774673965,-666.41,0.00029041,4]
[328024766,1716774673975,-500.0,0.00029041,4]
[328024767,1716774673984,-1614.98,0.00029041,4]
[328024768,1716774673994,-500.0,0.00029041,4]
[328024769,1716774674004,-500.0,0.00029041,4]
[328024770,1716774674013,-801.81,0.00029041,4]
[328024771,1716774674023,-664.62,0.00029041,4]
[328024772,1716774674032,-500.0,0.00029041,4]
[328024773,1716774674042,-500.0,0.00029041,4]
[328024774,1716774674051,-470.41754316,0.00029041,4]
[328024775,1716774674060,-584.07,0.00029041,4]
[328024776,1716774674070,-500.0,0.00029041,4]
[328024777,1716774674080,-1253.98,0.00029041,4]
[328024778,1716774674089,-464.1487034,0.00029041,4]
[328024779,1716774674099,-500.0,0.00029041,4]
[328024780,1716774674108,-1261.26,0.00029041,4]
[328024781,1716774674118,-576.77,0.00029041,4]
[328024782,1716774674128,-500.0,0.00029041,4]
[328024783,1716774674138,-500.0,0.00029041,4]
[328024784,1716774674147,-500.0,0.00029041,4]
[328024785,1716774674156,-1690.76,0.00029041,4]
[328024786,1716774674165,-603.3,0.00029041,4]
[328024787,1716774674174,-500.0,0.00029041,4]
[328024788,1716774674184,-500.0,0.00029041,4]
[328024789,1716774674193,-500.0,0.00029041,4]
[328024790,1716774674203,-500.0,0.00029041,4]
[328024791,1716774674216,-12954.13,0.00029041,4]
[328024792,1716774674226,-500.0,0.00029041,4]
[328024793,1716774674235,-500.0,0.00029041,4]
[328024794,1716774674245,-511.88980166,0.00029041,4]
[328024795,1716774674255,-500.0,0.00029041,4]
[328024796,1716774674267,-500.0,0.00029041,4]
[328024797,1716774674276,-500.0,0.00029041,4]
[328024798,1716774674288,-500.0,0.00029041,4]
[328024799,1716774674297,-22291.00700898,0.00029264,2]
[328024800,1716774674307,-304.77746084,0.00029313,2]
[328024801,1716774674316,-500.0,0.00029315,4]
[328024802,1716774674325,-500.0,0.00029315,4]
[328024803,1716774674335,-500.0,0.00029315,4]
[328024804,1716774674344,-500.0,0.00029315,4]
[328024805,1716774674353,-500.0,0.00029315,4]
[328024806,1716774674362,-500.0,0.00029315,4]
[328024807,1716774674372,-500.0,0.00029315,4]
[328024808,1716774674383,-500.0,0.00029315,4]
[328024809,1716774674392,-548.99,0.00029315,4]
[328024810,1716774674402,-623.54,0.00029315,4]
[328024811,1716774674411,-500.0,0.00029315,4]
[328024812,1716774674420,-500.0,0.00029315,4]
[328024813,1716774674430,-500.0,0.00029315,4]
[328024814,1716774674439,-500.0,0.00029315,4]
[328024815,1716774674449,-500.0,0.00029315,4]
[328024816,1716774674458,-500.0,0.00029315,4]
[328024817,1716774674468,-500.0,0.00029315,4]
[328024818,1716774674477,-259.27303528,0.00029315,4]
[328024819,1716774674487,-500.0,0.00029315,4]
[328024820,1716774674497,-500.0,0.00029315,4]
[328024821,1716774674506,-500.0,0.00029315,4]
[328024822,1716774674516,-500.0,0.00029315,4]
[328024823,1716774674526,-500.0,0.00029315,4]
[328024824,1716774674535,-500.0,0.00029315,4]
[328024825,1716774674545,-500.0,0.00029315,4]
[328024826,1716774674555,-444.06450079,0.00029315,4]
[328024827,1716774674564,-500.0,0.00029315,4]
[328024828,1716774674574,-270.09613174,0.00029315,4]
[328024829,1716774674583,-500.0,0.00029315,4]
[328024830,1716774674592,-500.0,0.00029315,4]
[328024831,1716774674601,-500.0,0.00029315,4]
[328024832,1716774674611,-519.20916036,0.00029315,4]
[328024833,1716774674620,-516.90840965,0.00029315,4]
[328024834,1716774674630,-500.0,0.00029315,4]
[328024835,1716774674639,-177.11791186,0.00029315,4]
[328024836,1716774674648,-500.0,0.00029315,4]
[328024837,1716774674658,-290.14784971,0.00029315,4]
[328024838,1716774674667,-500.0,0.00029315,4]
[328024839,1716774674677,-304.9337111,0.00029315,4]
[328024840,1716774674687,-500.0,0.00029315,4]
[328024841,1716774674696,-150.40940114,0.00029315,4]
[328024842,1716774674706,-500.0,0.00029315,4]
[328024843,1716774674715,-716.7,0.00029315,4]
[328024844,1716774674725,-500.0,0.00029315,4]
[328024845,1716774674734,-500.0,0.00029315,4]
[328024846,1716774674744,-500.0,0.00029315,4]
[328024847,1716774674754,-500.0,0.00029315,4]
[328024848,1716774674763,-500.0,0.00029315,4]
[328024849,1716774674773,-500.0,0.00029315,4]
[328024850,1716774674782,-500.0,0.00029315,4]
[328024851,1716774674792,-500.0,0.00029315,4]
[328024852,1716774674802,-593.13110997,0.00029315,4]
[328024853,1716774674811,-500.0,0.00029315,4]
[328024854,1716774674822,-578.10122415,0.00029315,4]
[328024855,1716774674832,-500.0,0.00029315,4]
[328024856,1716774674842,-500.0,0.00029315,4]
[328024857,1716774674852,-500.0,0.00029315,4]
[328024858,1716774674862,-500.0,0.00029315,4]
[328024859,1716774674872,-500.0,0.00029315,4]
[328024860,1716774674883,-520.81,0.00029315,4]
[328024861,1716774674893,-500.0,0.00029315,4]
[328024862,1716774674903,-211.52292014,0.00029315,4]
[328024863,1716774674912,-500.0,0.00029315,4]
[328024864,1716774674923,-500.0,0.00029315,4]
[328024865,1716774674933,-500.0,0.00029315,4]
[328024866,1716774674943,-430.24576929,0.00029315,4]
[328024867,1716774674954,-500.0,0.00029315,4]
[328024868,1716774674964,-500.0,0.00029315,4]
[328024869,1716774674974,-500.0,0.00029315,4]
[328024870,1716774674983,-500.0,0.00029315,4]
[328024871,1716774674993,-500.0,0.00029315,4]
[328024872,1716774675002,-340.35829046,0.00029315,4]
[328024873,1716774675011,-500.0,0.00029315,4]
[328024874,1716774675021,-500.0,0.00029315,4]
[328024875,1716774675031,-500.0,0.00029315,4]
[328024876,1716774675040,-618.81396265,0.00029315,4]
[328024877,1716774675050,-299.76,0.00029315,4]
[328024878,1716774675059,-500.0,0.00029315,4]
[328024879,1716774675068,-500.0,0.00029315,4]
[328024880,1716774675077,-500.0,0.00029315,4]
[328024881,1716774675087,-432.06618434,0.00029315,4]
[328024882,1716774675096,-500.0,0.00029315,4]
[328024883,1716774675105,-500.0,0.00029315,4]
[328024884,1716774675115,-500.0,0.00029315,4]
[328024885,1716774675124,-500.0,0.00029315,4]
[328024886,1716774675134,-502.71,0.00029315,4]
[328024887,1716774675144,-500.0,0.00029315,4]
[328024888,1716774675153,-500.0,0.00029315,4]
[328024889,1716774675163,-506.76215394,0.00029315,4]
[328024890,1716774675172,-809.78,0.00029315,4]
[328024891,1716774675181,-333.85911752,0.00029315,4]
[328024892,1716774675191,-433.61264274,0.00029315,4]
[328024893,1716774675205,-500.0,0.00029315,4]
[328024894,1716774675214,-500.0,0.00029315,4]
[328024895,1716774675224,-920.26,0.00029315,4]
[328024896,1716774675233,-500.0,0.00029315,4]
[328024897,1716774675246,-500.0,0.00029315,4]
[328024898,1716774675255,-500.0,0.00029315,4]
[328024899,1716774675266,-522.9,0.00029315,4]
[328024900,1716774675275,-500.0,0.00029315,4]
[328024901,1716774675286,-500.0,0.00029315,4]
[328024902,1716774675295,-559.7,0.00029315,4]
[328024903,1716774675305,-3246.39,0.00029315,4]
[328024904,1716774675314,-500.0,0.00029315,4]
[328024905,1716774675324,-394.99623336,0.00029315,4]
[328024906,1716774675333,-850.87,0.00029315,4]
[328024907,1716774675343,-500.0,0.00029315,4]
[328024908,1716774675353,-500.0,0.00029315,4]
[328024909,1716774675362,-500.0,0.00029315,4]
[328024910,1716774675371,-1876.14,0.00029315,4]
[328024911,1716774675381,-500.0,0.00029315,4]
[328024912,1716774675392,-500.0,0.00029315,4]
[328024913,1716774675401,-1150.71,0.00029315,4]
[328024914,1716774675411,-500.0,0.00029315,4]
[328024915,1716774675420,-500.0,0.00029315,4]
[328024916,1716774675430,-3298.05,0.00029315,4]
[328024917,1716774675440,-500.0,0.00029315,4]
[328024918,1716774675449,-500.0,0.00029315,4]
[328024919,1716774675459,-665.62,0.00029315,4]
[328024920,1716774675468,-500.0,0.00029315,4]
[328024921,1716774675478,-500.0,0.00029315,4]
[328024922,1716774675488,-500.0,0.00029315,4]
[328024923,1716774675500,-1737.1,0.00029315,4]
[328024924,1716774675509,-500.0,0.00029315,4]
[328024925,1716774675519,-500.0,0.00029315,4]
[328024926,1716774675528,-589.83,0.00029315,4]
[328024927,1716774675537,-500.0,0.00029315,4]
[328024928,1716774675546,-1057.8,0.00029315,4]
[328024929,1716774675556,-500.0,0.00029315,4]
[328024930,1716774675565,-500.0,0.00029315,4]
[328024931,1716774675574,-500.0,0.00029315,4]
[328024932,1716774675583,-500.0,0.00029315,4]
[328024933,1716774675593,-538.99,0.00029315,4]
[328024934,1716774675602,-1379.1,0.00029315,4]
[328024935,1716774675612,-674.64,0.00029315,4]
[328024936,1716774675621,-500.0,0.00029315,4]
[328024937,1716774675633,-500.0,0.00029315,4]